Cogmind - Beta 11.1 @@@ ROGUE MODE // 2022.05.13 @ 18:41:40 Player: Michael Result: Self-destructed Performance ------------- Evolutions (0) 0 Regions Visited (4) 800 Robots Destroyed (20) 100 Value Destroyed (285) 285 Prototype IDs (0) 0 Alien Tech Used (0) 0 Bonus (26) 26 TOTAL SCORE: 1211 Bonus ------- Follower Combat Kills 49 Friendly Fire -23 Cogmind --------- Core Integrity 12/250 Matter 233/300 Energy 100/100 System Corruption 8% Temperature Cool (8) Movement Rolling (105) Ox1 Location -9/Mines Parts ------- > --- POWER (1) -------- (None) > --- PROPULSION (2) --- Armored Wheel > --- UTILITY (2) ------ Large Storage Unit > --- WEAPON (2) ------- Assault Rifle Assault Rifle > --- INVENTORY (15) --- Nuclear Core Improved Treads Armored Wheel Armored Wheel Improved Heat Sink Medium Storage Unit High-capacity Storage Unit Medium Matter Pod (100) Structural Scanner Faulty Experimental Sensor Array Improved Terrain Scanner Particle Gun Peak State ------------ > --- POWER ------------ Ion Engine > --- PROPULSION ------- Armored Wheel Armored Wheel > --- UTILITY ---------- Large Storage Unit Improved Terrain Scanner > --- WEAPON ----------- Assault Rifle Assault Rifle > --- INVENTORY -------- Nuclear Core Reinforced Deuterium Engine Reinforced Deuterium Engine Improved Treads Armored Wheel Armored Wheel Medium Storage Unit High-capacity Storage Unit Structural Scanner Structural Scanner Experimental Sensor Array Assault Rifle Assault Rifle [Rating: 14] Favorites ----------- Power Ion Engine Engine Ion Engine Power Core Light Nuclear Core Propulsion Armored Wheel Treads Improved Treads Wheel Armored Wheel Utility Medium Storage Unit Device Structural Scanner Storage Medium Storage Unit Processor Transport Network Coupler Weapon Assault Rifle Ballistic Gun Assault Rifle Build | -11 -10 -10 -10 -9 ------- Run | Scr Mat Min Exi Min Slots Evolved . | . . . . . Power . | . . . . . Propulsion . | . . . . . Utility . | . . . . . Weapon . | . . . . . Parts Attached 44 | 6 28 2 2 6 Power 4 | 1 2 . . 1 Engine 3 | 1 2 . . . Core 1 | . . . . 1 Reactor . | . . . . . Propulsion 15 | 2 10 . 1 2 Treads 7 | . 6 . . 1 Leg . | . . . . . Wheel 8 | 2 4 . 1 1 Hover . | . . . . . Flight . | . . . . . Utility 12 | 1 8 1 1 1 Device 8 | . 6 1 . 1 Storage 3 | 1 1 . 1 . Processor 1 | . 1 . . . Hackware . | . . . . . Protection . | . . . . . Artifact . | . . . . . Weapon 13 | 2 8 1 . 2 Energy Gun . | . . . . . Energy Cannon . | . . . . . Ballistic Gun 13 | 2 8 1 . 2 Ballistic Cannon . | . . . . . Launcher . | . . . . . Special Weapon . | . . . . . Impact Weapon . | . . . . . Slashing Weapon . | . . . . . Piercing Weapon . | . . . . . Special Melee Weapon . | . . . . . Unidentified Prototypes . | . . . . . Parts Lost 7 | . 1 . . 6 Power 2 | . . . . 2 Propulsion 1 | . . . . 1 Utility 1 | . . . . 1 Weapon 3 | . 1 . . 2 Highest Loss Streak 5 | . 1 . . 5 To Critical Strikes . | . . . . . Average Slot Usage (%) 98 | . 98 100 100 98 Engine 13 | . 13 14 14 13 Treads 11 | . 13 14 . 11 Wheel 15 | . 14 14 27 16 Device 11 | . 9 14 14 13 Storage 14 | . 14 14 14 14 Processor 1 | . 3 . . . Ballistic Gun 27 | . 27 28 28 27 Naked Turns . | . . . . . Heaviest Build 30 | 13 20 20 30 30 Greatest Support 24 | 20 24 12 24 24 Greatest Overweight (x) 2 | . 1 1 1 2 Average Overweight (x) 1 | . . 1 . 1 Largest Inventory Capacity 15 | 8 10 10 15 15 Average Capacity 11 | 7 9 10 14 15 Most Carried 14 | 4 10 10 14 14 Average Carried 10 | 2 9 9 12 12 Final Capacity 15 | 8 10 10 15 15 Final Carried 14 | 4 10 10 14 12 Class Distribution -------------------- 100% | Mutant Dominant Class ---------------- Mutant | -10/Materials Mutant | -10/Mines Mutant | -10/Exiles Mutant | -9/Mines Resources | -11 -10 -10 -10 -9 ----------- Run | Scr Mat Min Exi Min Matter Collected 916 | 220 463 118 20 95 Remotely . | . . . . . Salvage Created 707 | . 441 108 . 158 Parts 46 | . 30 9 . 7 Haulers Intercepted 2 | . 2 . . . Recyclers Shooed 1 | . 1 . . . Parts Field Recycled . | . . . . . Retrieved Matter . | . . . . . Parts Self-Destructed . | . . . . . Prevented . | . . . . . Kills | -11 -10 -10 -10 -9 ------- Run | Scr Mat Min Exi Min Combat Hostiles Destroyed 12 | . 8 . . 4 Guns 12 | . 8 . . 4 Classes Destroyed 8 | . 6 1 . 1 Worker 2 | . 1 1 . . Tunneler 1 | . . 1 . . Hauler 2 | . 2 . . . Recycler 3 | . 1 1 . 1 Watcher 2 | . 2 . . . Swarmer 6 | . 6 . . . Grunt 4 | . 2 . . 2 Assembled 2 | . . . . 2 Best Kill Streak 5 | . 5 2 . 2 Combat Bots Only 5 | . 5 . . 2 Max Kills in Single Turn 1 | . 1 1 . 1 Gunslinging . | . . . . . Exploded . | . . . . . Melee . | . . . . . Uniques/NPCs Destroyed . | . . . . . Combat | -11 -10 -10 -10 -9 -------- Run | Scr Mat Min Exi Min Damage Taken 1164 | . 428 . . 736 Core 238 | . 72 . . 166 Absorbed by Shields . | . . . . . Core Remaining (%) 100 | 100 . . . . Volleys Fired 63 | . 37 4 . 22 Largest 2 | . 2 2 . 2 Hottest 40 | . 40 40 . 40 Shots Fired 126 | . 74 8 . 44 Gun 126 | . 74 8 . 44 Cannon . | . . . . . Launcher . | . . . . . Special . | . . . . . Kinetic 126 | . 74 8 . 44 Thermal . | . . . . . Explosive . | . . . . . Electromagnetic . | . . . . . Robot Hit Streak 8 | . 8 4 . 8 Robot Miss Streak 4 | . 4 1 . 2 Penetration Max . | . . . . . Secondary Targets 2 | . 1 . . 1 Max Gunslinging Chain 1 | . 1 . . 1 Shots Hit Robots 80 | . 46 5 . 29 Core Hits 39 | . 19 4 . 16 Critical Kills . | . . . . . Critical Parts Destroyed . | . . . . . Critical Strikes . | . . . . . Melee Attacks . | . . . . . Impact . | . . . . . Slashing . | . . . . . Piercing . | . . . . . Sneak Attacks . | . . . . . Combat Hostiles . | . . . . . Follow-up Attacks . | . . . . . Damage Inflicted 1042 | . 568 66 . 408 Guns 1042 | . 568 66 . 408 Cannons . | . . . . . Explosions . | . . . . . Melee . | . . . . . Ramming . | . . . . . Kinetic 1042 | . 568 66 . 408 Thermal . | . . . . . Explosive . | . . . . . Electromagnetic . | . . . . . Impact . | . . . . . Slashing . | . . . . . Piercing . | . . . . . Highest Corruption 8 | . . . . 8 Average Corruption 4 | . . . . 4 Corruption Purged . | . . . . . Corruption Blocked . | . . . . . Effects 1 | . . . . 1 Heat Flow Errors 1 | . . . . 1 Overload Shots . | . . . . . Overflow Damage . | . . . . . Projectiles . | . . . . . Explosions . | . . . . . Melee . | . . . . . Knockbacks . | . . . . . Impact . | . . . . . Kinetic . | . . . . . Secondary . | . . . . . Self-Inflicted Damage . | . . . . . Shots . | . . . . . Rammed . | . . . . . Targets Rammed . | . . . . . Kicked . | . . . . . Crushed . | . . . . . Highest Temperature 112 | . . . . 112 Average Temperature 41 | . . . . 41 Received Heat Transfer 343 | . 105 . . 238 Siege Activations . | . . . . . Robots Corrupted . | . . . . . Combat Hostiles . | . . . . . Parts Fried . | . . . . . Impact Corruptions . | . . . . . Robots Melted . | . . . . . Combat Hostiles . | . . . . . Parts Melted . | . . . . . Heat Transferred . | . . . . . Parts Sabotaged . | . . . . . Parts Stolen . | . . . . . Parts Stripped . | . . . . . Power Chain Reactions . | . . . . . Missiles Intercepted . | . . . . . Alert | -11 -10 -10 -10 -9 ------- Run | Scr Mat Min Exi Min Peak Influence 162 | . 162 60 . 149 Initial 45 | . . 45 . . Average 65 | . 69 56 . 71 Maximum Alert Level . | . . . . . Low Security (%) 100 | 100 100 100 . 100 Level 1 . | . . . . . Level 2 . | . . . . . Level 3 . | . . . . . Level 4 . | . . . . . Level 5 . | . . . . . High Security . | . . . . . Max Security . | . . . . . Squads Dispatched . | . . . . . Investigation . | . . . . . Extermination . | . . . . . Reinforcement . | . . . . . Assault . | . . . . . Garrison . | . . . . . Intercept . | . . . . . Searches Triggered . | . . . . . Construction Impeded . | . . . . . Haulers Reinforced . | . . . . . Active Scanning Responses . | . . . . . Cargo Convoy Interrupts . | . . . . . Stealth | -11 -10 -10 -10 -9 --------- Run | Scr Mat Min Exi Min Distress Signals . | . . . . . Communications Jammed . | . . . . . Distress Signals . | . . . . . Times Spotted 35 | . 18 . . 17 Peak Tracking Total 9 | . 5 . . 9 Tactical Retreats 1 | . 1 . . . Traps | -11 -10 -10 -10 -9 ------- Run | Scr Mat Min Exi Min Traps Triggered 7 | . 7 . . . Indirectly . | . . . . . Trap Hack Attempts . | . . . . . Triggered . | . . . . . Disarmed . | . . . . . Reprogrammed . | . . . . . Reused . | . . . . . Traps Extracted . | . . . . . Installed . | . . . . . Triggered . | . . . . . Exploded 2 | . . . . 2 Machines | -11 -10 -10 -10 -9 ---------- Run | Scr Mat Min Exi Min Machines Disabled . | . . . . . Max in Single Turn . | . . . . . Machines Sabotaged . | . . . . . Garrisons Compromised . | . . . . . Overloaded Fab Kills . | . . . . . Hacking | -11 -10 -10 -10 -9 --------- Run | Scr Mat Min Exi Min Machines Accessed 8 | . 6 . 1 1 Terminals 4 | . 4 . . . Fabricators . | . . . . . Repair Stations 1 | . 1 . . . Recycling Units 1 | . 1 . . . Scanalyzers . | . . . . . Garrison Access . | . . . . . Total Hacks 17 | . 15 . 1 1 Successful 9 | . 7 . 1 1 Failed 8 | . 8 . . . Catastrophic 2 | . 2 . . . Database Lockouts . | . . . . . Manual . | . . . . . Terminals 12 | . 12 . . . Fabricators . | . . . . . Repair Stations 2 | . 2 . . . Recycling Units 1 | . 1 . . . Scanalyzers . | . . . . . Garrison Access . | . . . . . Terminal Hacks 7 | . 5 . 1 1 Record 1 | . . . 1 . Open Door 1 | . . . . 1 Branch Access Points 1 | . 1 . . . Emergency Access Points 1 | . 1 . . . Scanalyzer Index 1 | . 1 . . . Locate Traps 1 | . 1 . . . Patrol Status 1 | . 1 . . . Fabricator Hacks . | . . . . . Repair Station Hacks 1 | . 1 . . . Scan Component 1 | . 1 . . . Recycling Unit Hacks 1 | . 1 . . . Retrieve Components 1 | . 1 . . . Scanalyzer . | . . . . . Garrison Access Hacks . | . . . . . Unauthorized Hacks . | . . . . . Terminals . | . . . . . Fabricators . | . . . . . Repair Stations . | . . . . . Recycling Units . | . . . . . Scanalyzers . | . . . . . Garrison Access . | . . . . . Data Cores Recovered . | . . . . . Used . | . . . . . Hacking Detections 4 | . 4 . . . Full Trace Events . | . . . . . Feedback Events . | . . . . . Feedback Blocked . | . . . . . Robot Schematics Acquired . | . . . . . Robots Built . | . . . . . Authchips . | . . . . . Time . | . . . . . Total Robot Build Rating . | . . . . . Part Schematics Acquired . | . . . . . Parts Built . | . . . . . Authchips . | . . . . . Time . | . . . . . Total Part Build Rating . | . . . . . Parts Repaired . | . . . . . Time . | . . . . . Parts Recycled . | . . . . . Recycled Matter . | . . . . . Retrieved Matter . | . . . . . Retrieved Components 10 | . 10 . . . Parts Scanalyzed . | . . . . . Part Schematics Acquired . | . . . . . Parts Damaged . | . . . . . Bothacking | -11 -10 -10 -10 -9 ------------ Run | Scr Mat Min Exi Min Used RIF Installer . | . . . . . Robots Hacked . | . . . . . Non-combat . | . . . . . Combat . | . . . . . Robot Hacks Applied . | . . . . . Relay Couplers Released . | . . . . . Fabnet Peak Effective % . | . . . . . Robots Rewired . | . . . . . Allies Hacked . | . . . . . Hacks Repelled . | . . . . . Allies | -11 -10 -10 -10 -9 -------- Run | Scr Mat Min Exi Min Total Allies 4 | . . . . 4 Largest Group 4 | . . . . 4 Highest-Rated Group 71 | . . . . 71 Highest-Rated Ally 31 | . . . . 31 Total Orders . | . . . . . Ally Attacks 33 | . . . . 33 Total Damage 454 | . . . . 454 Kills 9 | . . . . 9 Allies Corrupted . | . . . . . Allies Melted . | . . . . . Intel | -11 -10 -10 -10 -9 ------- Run | Scr Mat Min Exi Min Robot Analysis Total . | . . . . . Derelict Logs Recovered 1 | . . . . 1 Drone Launches . | . . . . . Drone Recoveries . | . . . . . Exploration | -11 -10 -10 -10 -9 ------------- Run | Scr Mat Min Exi Min Turns Passed 2124 | 45 1003 350 183 543 Spaces Moved 1568 | 41 691 317 169 350 Core 4 | 4 . . . . Treads 9 | . 9 . . . Legs . | . . . . . Wheels 1555 | 37 682 317 169 350 Hover . | . . . . . Flight . | . . . . . Fastest Speed 50 | 50 90 105 90 105 Average Speed 105 | 77 101 105 104 117 Slowest Speed 160 | 80 160 105 105 120 Overloaded Moves . | . . . . . Propulsion Burnouts . | . . . . . Robots Hopped . | . . . . . Cave-ins Triggered . | . . . . . Exploration Rate (%) 57 | 4 95 68 54 68 Regions Visited 4 Branch Regions 3 Pre-discovered Areas 2 | . . . 1 1 Known Exits Taken 1 | . 1 . . . Unknown Exits Taken 3 | 1 . 1 1 . Scrap Searched 3 | . . 1 . 2 Spaces Dug . | . . . . . Terrain Destroyed . | . . . . . Melee . | . . . . . Projectile . | . . . . . AOE . | . . . . . Terrain Rammed . | . . . . . Walls Destroyed . | . . . . . Machines Disabled . | . . . . . Actions | -11 -10 -10 -10 -9 --------- Run | Scr Mat Min Exi Min Total 1906 | 51 918 326 174 437 Wait 189 | . 134 . . 55 Move 1564 | 40 690 316 168 350 Hop . | . . . . . Pick Up 25 | 5 13 1 4 2 Fast Attach 26 | 5 19 1 . 1 Attach 5 | 1 2 . . 2 Detach 4 | . 3 1 . . Swap 13 | . 7 1 2 3 Drop 17 | . 13 2 . 2 Fire 63 | . 37 4 . 22 Melee . | . . . . . Ram . | . . . . . Kick . | . . . . . Crush . | . . . . . Escape Stasis . | . . . . . Rewire . | . . . . . Trap . | . . . . . Miscellaneous . | . . . . . Route ------- -11/Scrapyard -10/Materials (discovered 4 exits: [*Mat x3] / *Min) -10/Mines (discovered 2 exits: [*Mat] / *Exi) -10/Exiles -9/Mines History --------- Turn | Location | Event 14 | -11/Scrapyard | Discovered new exit (range 16) 46 | -11/Scrapyard | Entered Materials 114 | -10/Materials | Identified exit to Mines 326 | -10/Materials | Build established: Mutant 327 | -10/Materials | Discovered new exit (range 3) 362 | -10/Materials | Discovered new exit (range 16) 605 | -10/Materials | Discovered new exit (range 16) 1049 | -10/Materials | Entered Mines 1063 | -10/Mines | Met a Derelict bent on vengeance 1222 | -10/Mines | Discovered new exit (range 5) 1249 | -10/Mines | Discovered new exit (range 10) 1253 | -10/Mines | Deemed a non-threat by the Exiles lab entrance 1327 | -10/Mines | Found a damaged Exp. Sensor Array with a note attached 1330 | -10/Mines | Found Prototype Device 1399 | -10/Mines | Entered Exiles 1431 | -10/Exiles | Met 8R-AWN 1447 | -10/Exiles | Met EX-HEX 1495 | -10/Exiles | Met EX-DEC 1512 | -10/Exiles | Learned location of Zion (-7) 1569 | -10/Exiles | Discovered new exit (range 14) 1582 | -10/Exiles | Entered Mines 1671 | -9/Mines | Found the Drone Emporium 1775 | -9/Mines | Assisted by bots powering up and referring to "LRC-V3" 1874 | -9/Mines | Received a Mining Laser from a helpful Derelict 2077 | -9/Mines | Assembled infested the area 2082 | -9/Mines | Assisted by a Guerilla fighting off Assembled 2093 | -9/Mines | Core integrity fell below 50% 2120 | -9/Mines | Core integrity fell below 20% 2125 | -9/Mines | Self-destructed Last Messages --------------- 02103_ Trooper 2a destroyed. 02105_ as-67353 sneak attacks. 02105_ T-07 Excavator system corrupted by crushing effect. 02105_ as-24065 destroyed. 02105_ as-72347 sneak attacks. 02105_ T-07 Excavator system corrupted by crushing effect. 02105_ T-07 Excavator destroyed. 02108_ Arm. Wheel destroyed. 02110_ as-27219 destroyed. 02110_ Switching to secondary target: as-13982. 02112_ Structural Scanner destroyed. 02112_ System corrupted by crushing effect (+4). 02115_ Knocked back. 02118_ Destroyed Asb. Hover Unit. 02118_ as-13982 destroyed. 02119_ Acquired 4 matter. 02119_ Assault Rifle destroyed. 02119_ System corrupted by crushing effect (+1). 02119_ Knocked back. 02122_ Lgt. Nuclear Core destroyed. Map ----- +----------------------------------------------------+ | # ###?????????????? ##???????????? | | # ###????????##### ##???????????? | | # ####??????###### ##???????????? | | ##### ######???### # ###??????????? | | ###### ########## ###??????????? | | ???### "# ####### ##??????????? | | ???### ##""""#### [% ##??????????? | | ???## ## ###??????????? | | ???## ## """"### ###??????????? | | ???### ## # ##### ##???????????? | | ???#### ### ######### ##???????????? | | ####### #### #####?#### ###???????????? | | ####### ##?????### ###???????????? | | #######??????# ##???????????? | | ##############????? ##???????????? | | ##############????? ###???????????? | | ##???## ####???????????? | | ##???########????????????? | | ######## ## ##???#######?????????????? | | ########## ## ########?????????????????? | | #####= ## #########????????????????? | | #####%###### ## #######????????????? | | #####=##### #######???????????? | | %=%[ ### ###???????????? | | [=!% #### ##???????????? | | ######## a@ ##???????????? | | """ """ ########## !aa###???????????? | | """ """ ##????#########%=###???????????? | | """ """ ##??????#######a%##????????????? | | ###########???????????##%!##????????????? | | ###########???????????##a%##????????????? | | ??????????????????????## %##????????????? | | ?????????????????????? ????????????? | | ??????????????????????##### ##??????????? | | ??????????????????????##### ##??????????? | | #?????????????????????????? ##??????????? | | ##????????????????????????? ##??????????? | | ##??????????????????????????????????????? | | ##??????????????????????????????????????? | | ##??????????????????????????????????????? | | ##??????????????????????????????????????? | | ##??????????????????????????????????????? | | ##??????????????????????????????????????? | | ##??????????????????????????????????????? | | #???????????????????????????????????????? | | #???????????????????????????????????????? | | #???????????????????????????????????????? | | #???????????????????????????????????????? | | ????????????????????????????????????????? | | ????????????????????????????????????????? | +----------------------------------------------------+ Best States ------------- Heat Dissipation 35 Energy Generation 14 Energy Capacity 250 Matter Stores 300 Matter Capacity 300 Sight Range 16 Terrain Scan Range 16 Terrain Scan Density 10 Evasion (%) 44 Recoil Reduction 1 Item Schematics ----------------- None Robot Schematics ------------------ None Fabricated ------------ Nothing Alien Tech Used ----------------- None Achievements -------------- None Challenges ------------ None Game ------ Seed DataTargetMeganuke Manual? 0 Play Time 00:20:50 Cumulative 367.7 hours Start 2022.05.13 @ 17:14:26 End 2022.05.13 @ 18:41:40 Sessions 1 Manual Loads 0 Difficulty Rogue Special Mode None Game No. 153 Rogue 130 Adventurer 23 Explorer 0 Win Type - Total 1 Types 1/0/0/0/0/0/0/0/0 Lore% 45 Gallery% 57 Achievement% 44 Wizard Run 0 Options --------- ASCII 0 Keyboard 1 Movement Vi Keybinds 0 Fullscreen 1 Font 12/Tallcaps Map View 83x54 Tactical HUD 1 Map Filters NONE Filters NONE Steam 0 RUN: 6b38f3b0-a724-4be4-aa59-fe64160c36d2